[Event "35th Roquetas Festival 2024"]
[Site "Roquetas de Mar"]
[Date "2024.01.06"]
[Round "7.1"]
[White "Stremavicius, Titas"]
[Black "Suarez Uriel, Adrian"]
[Result "1-0"]
[ECO "D78"]
[WhiteElo "2543"]
[BlackElo "2365"]
[Annotator "TA"]
[PlyCount "87"]
[EventDate "2024.01.02"]
[EventType "swiss"]
[EventCountry "ESP"]
[SourceTitle "playchess.com"]
[Source "ChessBase"]
[SourceQuality "1"]
[TimeControl "5400+30"]

{[%evp 18,87,30,16,11,25,11,20,41,41,79,77,122,118,120,126,125,85,87,85,90,74,72,71,75,67,79,72,76,-91,-89,-89,-96,-97,26,-81,-83,-92,-81,-67,-67,-81,0,0,0,0,107,108,108,106,122,150,177,171,212,210,212,212,318,328,791,779,710,706,806,785,837,834,804,804,681,652]} 1. d4 {[%emt 0:00:02]} Nf6 {[%emt 0:01:27]} 2. Nf3 {[%emt 0:00:04]} g6 {[%emt 0:00:05]} 3. g3 {[%emt 0:00:11]} Bg7 {[%emt 0:00:07]} 4. Bg2 {[%emt 0:00:05]} O-O {[%emt 0:00:06]} 5. O-O {[%emt 0:00:05]} d5 {[%emt 0:00:09]} 6. c4 {[%emt 0:00:08]} c6 {[%emt 0:00:04]} 7. b3 {[%emt 0:00:06]} a5 {[%emt 0:02:02]} 8. Nc3 {[%emt 0:02:48]} Ne4 {[%emt 0:01:21]} 9. Bb2 {[%emt 0:00:09]} Bf5 {[%emt 0:04:14]} 10. e3 {[%emt 0:07:30]} Nxc3 {[%emt 0:00:48] D78: Fianchetto Grünfeld: 6 0-0 c6.} 11. Bxc3 {[%emt 0:00:04]} Be4 {[%emt 0:00:04]} 12. Qe2 {[%emt 0:12:12] [#]} Qb6 $146 {[%emt 0:08:06] The position is equal.} ({Predecessor:} 12... e6 13. Rfd1 Nd7 14. Bf1 Bxf3 15. Qxf3 Nc5 16. Be1 Ne4 17. Qe2 Re8 18. a3 Nd6 {½-½ Duda,J (2750)-Wojtaszek,R (2708) FTX Road to Miami Prelim 2022 (3)}) 13. Bh3 {[%emt 0:07:11]} Qa6 {[%emt 0:13:25]} 14. Ng5 {[%emt 0:11:52]} Bf5 {[%emt 0:01:17]} 15. Bxf5 {[%emt 0:00:09]} gxf5 {[%emt 0:00:02]} 16. Qh5 {[%emt 0:00:12][%csl Gg5][%cal Rh5h7]} h6 {[%emt 0:00:04]} 17. Nf3 {[%emt 0:00:06]} dxc4 {[%emt 0:09:31]} 18. Qxf5 {[%emt 0:00:27]} b5 {[%emt 0:00:58][%cal Bb7b5,Bb5b4,Bb4b3][%mdl 32]} 19. bxc4 {[%emt 0:03:41] Strongly threatening Rac1. White has more active pieces.} b4 {[%emt 0:00:33]} 20. Bd2 {[%emt 0:00:06]} Qxc4 {[%emt 0:00:08]} 21. Rfc1 {[%emt 0:00:06]} Qd5 {[%emt 0:00:10]} 22. Qxd5 {[%emt 0:02:26]} cxd5 {[%emt 0:00:12]} 23. a3 $2 {[%emt 0:00:04]} (23. Rc5 $1 $16 {stays on course.}) 23... b3 $17 {[%emt 0:06:09] And now ...b2 would win.} 24. Rc5 {[%emt 0:00:14]} a4 {[%emt 0:00:34]} 25. Rxd5 {[%emt 0:00:05] [#]} Rc8 {[%emt 0:00:49]} (25... e6 $1 $17 {[%cal Re6d5]} 26. Rb5 Nd7) 26. Kf1 {[%emt 0:09:40]} (26. Rc1 $11 Re8 27. Rb5) 26... e6 {[%emt 0:07:16][%mdl 1024] Black has strong compensation.} 27. Rb5 {[%emt 0:00:22]} Nd7 {[%emt 0:00:47][%cal Od7c5]} 28. Ke2 {[%emt 0:08:18]} Bf8 {[%emt 0:12:36]} ({Much weaker is} 28... Rc2 29. Ne1 Rb2 30. Nd3 $11) 29. Kd3 {[%emt 0:04:57]} Rcb8 {[%emt 0:00:57]} (29... Rc2 $17) 30. Rxb8 $11 {[%emt 0:04:21]} Rxb8 {[%emt 0:00:04]} 31. Bc3 {[%emt 0:00:29]} Nf6 {[%emt 0:07:24]} (31... b2 $11 {keeps the balance.} 32. Rb1 Bxa3) 32. Bb2 $16 {[%emt 0:00:40]} Ng4 {[%emt 0:00:04] [#]} 33. Ke2 {[%emt 0:00:18]} Rc8 {[%emt 0:02:38] ...Rc2+ would be deadly.} 34. Rc1 {[%emt 0:01:15]} Rxc1 {[%emt 0:00:03]} 35. Bxc1 {[%emt 0:00:05][%mdl 4096] Endgame KBN-KBN} f5 {[%emt 0:00:23]} 36. Nd2 {[%emt 0:01:16]} Nf6 {[%emt 0:00:21]} 37. Nc4 {[%emt 0:02:21]} Ne4 {[%emt 0:00:06]} (37... Nd5 {was worth a try.} 38. Kd3 h5) 38. Bb2 $18 {[%emt 0:00:39]} Nd6 $2 {[%emt 0:12:20]} (38... Kf7 39. Nb6 Nd6) 39. Nxd6 {[%emt 0:01:19] White is clearly winning.} Bxd6 {[%emt 0:00:03]} 40. Kd3 {[%emt 0:00:07]} Bc7 {[%emt 0:01:32]} 41. Kc4 {[%emt 0:00:07]} Ba5 {[%emt 0:00:03]} 42. Kb5 {[%emt 0:00:06][%csl LRa4,LRa5]} Be1 {[%emt 0:00:02]} 43. f3 {[%emt 0:00:09]} Bf2 {[%emt 0:00:05]} 44. e4 {[%emt 0:00:33] Weighted Error Value: White=0.18 (very precise) /Black=0.27 (precise)} 1-0

[Event "35th Roquetas Festival 2024"]
[Site "Roquetas de Mar"]
[Date "2024.01.06"]
[Round "7.2"]
[White "Grigoryan, Karen H."]
[Black "Sosa, Tomas"]
[Result "1-0"]
[ECO "D30"]
[WhiteElo "2643"]
[BlackElo "2554"]
[Annotator "TA"]
[PlyCount "116"]
[EventDate "2024.01.02"]
[EventType "swiss"]
[EventCountry "ESP"]
[SourceTitle "playchess.com"]
[Source "ChessBase"]
[SourceQuality "1"]
[TimeControl "5400+30"]

{[%evp 11,116,9,12,6,12,15,14,14,14,14,6,18,11,28,7,20,34,16,47,40,50,50,21,30,54,48,48,36,40,43,81,48,76,85,85,81,85,75,93,93,93,93,97,97,99,78,79,79,79,79,101,74,89,89,89,32,74,72,116,116,182,131,415,325,458,458,553,540,523,508,6721,6427,29969,29971,29968,29970,29973,29972,29974,29968,29964,29968,29960,29964,29969,29970,29967,29967,29976,29976,29976,29977,29977,29975,29975,29976,29976,29977,29976,29977,29976,29977,29989,29990,29990,29991,29994]} 1. d4 d5 2. c4 e6 3. Nf3 Nf6 4. e3 c5 5. Nc3 a6 6. cxd5 exd5 7. g3 {D40: Queen's Gambit Declined: Semi-Tarrasch with 5 e3.} Nc6 {7...c4 is the fancy move.} 8. Bg2 c4 9. Ne5 {The position is equal.} Bb4 10. Bd2 O-O 11. O-O Re8 12. Nxc6 bxc6 13. b3 {[#]} cxb3 $146 ({Predecessor:} 13... a5 14. Qc2 h5 15. bxc4 Ba6 16. Na4 Bxc4 17. Rfb1 Bxd2 18. Qxd2 Bb5 19. Nc3 Bc4 20. Na4 Bb5 21. Nc3 Bc4 {½-½ Fressinet,L (2622)-Jones,G (2626) Bundesliga 2223 2022 (13.8)}) 14. axb3 Bd6 15. Qc2 Bd7 16. e4 dxe4 17. Nxe4 Be7 18. Nxf6+ Bxf6 19. Be3 (19. Bxc6 Rc8 20. Rxa6 Re2 $17) 19... a5 20. Rfc1 Qe7 21. Qc5 (21. Bxc6 $2 Rac8 22. d5 Bxa1 23. Rxa1 Qf6 $19) 21... Reb8 22. Rxa5 Rxa5 23. Qxa5 Rxb3 24. Qa8+ (24. Bxc6 Bxc6 25. Rxc6 Rb1+ 26. Bc1 g6 $14) 24... Qe8 25. Qxe8+ Bxe8 26. Bxc6 Bxc6 27. Rxc6 $16 {[%mdl 4096] Endgame White wants to mate with Rc8+. KRB-KRB} Kf8 28. Rc7 Ke8 29. Kg2 Rb4 30. d5 {[%cal Bd4d5,Bd5d6][%mdl 32]} Bd4 31. Bc1 Rb5 32. d6 $1 Rd5 33. Ba3 ({Better is} 33. Re7+ $16 Kd8 34. Rxf7) 33... f5 34. h4 {White is more active.} Ra5 35. Bc1 {Hoping for Bg5.} h6 {Wards off Bg5} (35... Rd5 $16 {keeps fighting.}) 36. Re7+ ({White should try} 36. Be3 $18 Bf6 37. d7+ Ke7 38. Bc5+ Ke6 39. h5) 36... Kd8 {[%mdl 8192] This move loses the game for Black.} (36... Kf8 $16 37. Bf4 Bf6) 37. Be3 $1 $18 Bxe3 (37... Ra6 $142 38. Bxd4 Rxd6 39. Rxg7 Rxd4) 38. fxe3 {KR-KR} (38. Rxe3 g5 39. Re6 gxh4 $16) 38... g5 39. Rh7 Re5 40. Rxh6 gxh4 (40... g4 $142 41. Rh7 Re6) 41. gxh4 Rxe3 42. h5 {White mates.} Kd7 43. Rg6 f4 44. h6 Re5 45. Rf6 Rh5 46. Kf3 ({Stronger than} 46. Rxf4 Rxh6 47. Rf7+ Kxd6 $11) 46... Rh4 47. Ke4 $1 ({And not} 47. Rxf4 Rxh6 48. Kg4 Kxd6 $11) 47... Kc6 {[#]} 48. Kf5 $1 ({Weaker is} 48. Rxf4 Rxh6 49. Rg4 Rxd6 $11) 48... f3 49. Kg6 Rh2 50. Rxf3 Rg2+ 51. Kf7 Kxd6 52. h7 Rh2 53. Kg8 Rg2+ {[#]} 54. Kf8 $1 Rh2 55. Rf7 Ke6 56. Kg8 Rd2 57. h8=Q Rd8+ 58. Rf8 Kd5 {Weighted Error Value: White=0.04 (flawless) /Black=0.32} 1-0

[Event "35th Roquetas Festival 2024"]
[Site "Roquetas de Mar"]
[Date "2024.01.06"]
[Round "7.3"]
[White "Peng, Li Min"]
[Black "Macias Pino, Diego"]
[Result "1/2-1/2"]
[ECO "A61"]
[WhiteElo "2575"]
[BlackElo "2456"]
[Annotator "TA"]
[PlyCount "33"]
[EventDate "2024.01.02"]
[EventType "swiss"]
[EventCountry "ESP"]
[SourceTitle "playchess.com"]
[Source "ChessBase"]
[SourceQuality "1"]
[TimeControl "5400+30"]

{[%evp 13,33,29,44,25,19,22,18,35,34,0,0,2,9,-47,45,0,24,-60,43,0,25,-48]} 1. d4 {[%emt 0:01:25]} Nf6 {[%emt 0:00:15]} 2. c4 {[%emt 0:00:05]} e6 {[%emt 0:01:12]} 3. Nc3 {[%emt 0:00:08]} c5 {[%emt 0:00:57]} 4. d5 {[%emt 0:00:06]} exd5 {[%emt 0:00:04]} 5. cxd5 {[%emt 0:00:05]} d6 {[%emt 0:00:03]} 6. Nf3 {[%emt 0:03:20]} g6 {[%emt 0:00:16]} 7. Bf4 {[%emt 0:00:30]} Bg7 {[%emt 0:00:05]} 8. h3 {[%emt 0:00:17] A61: Modern Benoni: Nf3 without early e4.} O-O {[%emt 0:00:13][%cal Ob7b5]} 9. e3 {[%emt 0:00:08]} Na6 {[%emt 0:00:06]} 10. Bxa6 {[%emt 0:13:53] The position is equal. The modern move.} bxa6 {[%emt 0:00:19]} 11. O-O {[%emt 0:00:51]} Rb8 {[%emt 0:00:03]} 12. Qe2 {[%emt 0:05:49] [#]} Nh5 $146 {[%emt 0:10:56]} ({Predecessor:} 12... Re8 13. Rac1 Rb4 14. Bh2 Qb6 15. b3 a5 16. Rfd1 Ba6 17. Qc2 Nd7 18. Nd2 Qb8 19. a3 Rb6 20. Nc4 Bxc4 21. bxc4 Rb2 22. Qa4 Nb6 23. Qxa5 Nxc4 {½-½ Bluebaum,M (2633)-Chabanon,J (2452) FRA-chT Top 12 2016 (8.2)}) 13. Bg5 {[%emt 0:00:02]} (13. Bh2 $1 $11) 13... Nf6 {[%emt 0:00:12]} (13... Qe8 $15) 14. Bf4 {[%emt 0:00:04]} Nh5 {[%emt 0:00:07]} 15. Bg5 {[%emt 0:00:04]} (15. Bh2 $11) 15... Nf6 {[%emt 0:00:04]} (15... Qe8 $15) 16. Bf4 {[%emt 0:00:03]} Nh5 {[%emt 0:00:08]} 17. Bg5 {A rather calm draw.   Weighted Error Value: White=0.34/Black=0.33} ({Better is} 17. Bh2 $11) 1/2-1/2

[Event "35th Roquetas Festival 2024"]
[Site "Roquetas de Mar"]
[Date "2024.01.06"]
[Round "7.4"]
[White "Bernadskiy, Vitaliy"]
[Black "Fiorito, Francisco"]
[Result "1-0"]
[ECO "A05"]
[WhiteElo "2566"]
[BlackElo "2370"]
[Annotator "TA"]
[PlyCount "93"]
[EventDate "2024.01.02"]
[EventType "swiss"]
[EventCountry "ESP"]
[SourceTitle "playchess.com"]
[Source "ChessBase"]
[SourceQuality "1"]
[TimeControl "5400+30"]

{[%evp 16,93,16,16,26,0,0,5,27,22,29,27,28,30,29,13,31,11,11,20,20,10,18,20,17,16,23,23,44,32,20,22,33,0,0,0,0,0,0,-6,-24,-21,-17,-68,-51,-75,-60,-73,-73,-87,-99,-75,-77,-85,0,-157,-174,-195,-166,-293,259,261,432,293,471,260,653,616,765,600,803,754,712,658,29971,29969,29993,29994,29994,29994]} 1. Nf3 {[%emt 0:01:52]} Nf6 {[%emt 0:03:37]} 2. c4 {[%emt 0:02:40]} b6 {[%emt 0:00:34]} 3. g3 {[%emt 0:02:07]} Bb7 {[%emt 0:00:05]} 4. Bg2 {[%emt 0:00:04]} g6 {[%emt 0:00:05]} 5. b3 {[%emt 0:00:16]} Bg7 {[%emt 0:00:28]} 6. Bb2 {[%emt 0:00:05]} c5 {[%emt 0:00:25]} 7. O-O {[%emt 0:00:12]} O-O {[%emt 0:00:22]} 8. d4 {[%emt 0:01:40]} cxd4 {[%emt 0:00:07]} 9. Qxd4 {[%emt 0:00:31]} d6 {[%emt 0:01:11] 9...d6 is better than 9...Nc6. A30: Symmetrical English: Double Fianchetto and Hedgehog.} 10. Qh4 {[%emt 0:05:55] And now Ng5 would win.} Nbd7 {[%emt 0:04:25]} 11. Nc3 {[%emt 0:02:06]} h6 {[%emt 0:08:28] The position is equal.} 12. Rfd1 {[%emt 0:02:45]} Rc8 {[%emt 0:08:11]} 13. Rac1 {[%emt 0:01:49]} a6 {[%emt 0:06:15] [#]} 14. Qf4 $146 {[%emt 0:06:22]} ({Predecessor:} 14. Nd5 Nxd5 15. Bxg7 Kxg7 16. cxd5 Rxc1 17. Rxc1 Bxd5 18. Qd4+ Nf6 19. Qd2 b5 20. Qd4 {0-1 Harsha,B (2572)-Arabidze,M (2422) Titled Tuesday intern op 27th Sep Early blitz 2022 (8)}) 14... Rc7 {[%emt 0:08:11]} 15. Ne1 {[%emt 0:04:55]} Qa8 {[%emt 0:06:00][%cal Ob6b5]} 16. Nd5 {[%emt 0:05:25]} Nxd5 {[%emt 0:04:22]} 17. cxd5 {[%emt 0:00:05]} Rxc1 {[%emt 0:03:20]} 18. Qxc1 {[%emt 0:00:19]} (18. Bxc1 {simplifies} h5 19. e4 a5 20. Nf3) 18... Rc8 {[%emt 0:00:23]} 19. Qd2 {[%emt 0:00:04]} Bxb2 {[%emt 0:00:46]} 20. Qxb2 {[%emt 0:00:03]} a5 {[%emt 0:00:55]} 21. Qd2 {[%emt 0:05:24]} h5 {[%emt 0:01:49]} 22. Bh3 {[%emt 0:18:05]} Rc7 {[%emt 0:00:31]} 23. Bxd7 {[%emt 0:00:23]} Rxd7 {[%emt 0:00:02]} 24. Qd4 {[%emt 0:01:02]} b5 {[%emt 0:06:45]} 25. e4 {[%emt 0:04:17]} Rc7 {[%emt 0:01:56] Prevents Rc1.} 26. Qb6 {[%emt 0:00:42]} Rc5 {[%emt 0:00:37]} 27. Ng2 {[%emt 0:03:43]} b4 {[%emt 0:07:33]} 28. Ne3 {[%emt 0:02:57][%cal Oe4e5]} Qc8 {[%emt 0:00:47]} 29. Kg2 {[%emt 0:02:04]} (29. Qa7 $11) 29... Ba6 $15 {[%emt 0:01:40]} 30. h3 {[%emt 0:02:38]} f6 {[%emt 0:02:18]} 31. Qa7 {[%emt 0:04:44]} Kf7 {[%emt 0:02:38]} 32. g4 {[%emt 0:01:23] [#]} h4 $1 {[%emt 0:01:06]} 33. Qb6 {[%emt 0:00:19]} Be2 {[%emt 0:01:41]} 34. Rd2 {[%emt 0:00:22]} Ba6 {[%emt 0:00:06]} ({Better is} 34... Bb5 $17) 35. g5 $2 {[%emt 0:02:44]} fxg5 $17 {[%emt 0:03:41]} 36. e5 {[%emt 0:00:09] [#]} Qb7 $1 {[%emt 0:00:47]} (36... dxe5 37. Ng4 Rc3 38. Qxa5 $11) 37. Qd8 {[%emt 0:00:36]} (37. Qxb7 $142 Bxb7 38. e6+ Kg7 39. Kf3) 37... dxe5 $4 {[%emt 0:02:30][%mdl 8192]} (37... Rc8 $19 {avoids the disaster.} 38. e6+ Kf6) 38. Qh8 $18 {[%emt 0:01:06]} g4 $2 {[%emt 0:05:31]} (38... Qc8 $2 39. Qh7+ (39. Qxe5 Bb7 $16) 39... Ke8 40. d6 (40. Qg8+ Kd7 $18) 40... Qc6+ 41. Nd5 Qxd6 42. Nc7+ Rxc7 43. Rxd6 $18) (38... Bb5 39. Kh2 (39. Qxe5 Qa6 $15) (39. Qh7+ Ke8 $18) 39... Bd7) 39. hxg4 {[%emt 0:02:07] Black must now prevent Qh7+.} (39. Qxe5 gxh3+ 40. Kxh3 Qc8+ 41. Kxh4 Rc1 $11) 39... e6 $2 {[%emt 0:00:45]} (39... Qc7 {is a better defense.} 40. Qh7+ {[%mdl 64] Deflection} (40. Qxh4 Qd6 $14) 40... Kf8) 40. Qxe5 {[%emt 0:03:58]} (40. Qh7+ $142 Kf6 41. Qxh4+ Kg7 42. Qg5) 40... exd5 $2 {[%emt 0:00:06]} (40... Qe7) 41. Rd4 {[%emt 0:00:02] Rf4+ would be deadly.} (41. Rxd5 Rc6 42. Kh3 (42. Rxa5 $2 {too greedy.} Rc5+ {[%mdl 64] Discovered Attack} 43. Nd5 Rxa5 $19) 42... Re6 43. Qf4+ Rf6 $18) 41... Kg8 {[%emt 0:00:47] Against Rf4} 42. Qe6+ {[%emt 0:03:51]} ({Not} 42. Rxd5 Rxd5 43. Nxd5 Bd3 $16) 42... Kg7 {[%emt 0:01:04]} 43. g5 {[%emt 0:01:16] Hoping for Qf6+.} (43. Rxd5 Rxd5 44. Nxd5 Bd3 $16) 43... h3+ {[%emt 0:01:10]} 44. Qxh3 {[%emt 0:00:05] Qh6+ is the strong threat.} Qf7 {[%emt 0:00:51]} 45. Rh4 {[%emt 0:00:21] White mates.} Qg8 {[%emt 0:00:37]} 46. Qd7+ {[%emt 0:00:07]} Qf7 {[%emt 0:00:05] [#]} 47. Rh7+ $3 {[%emt 0:00:04][%mdl 576] Skewer. An entertaining game by Bernadskiy.   Weighted Error Value: White=0.40/Black=0.72} 1-0

[Event "35th Roquetas Festival 2024"]
[Site "Roquetas de Mar"]
[Date "2024.01.06"]
[Round "7.5"]
[White "Fernandez, Daniel Howard"]
[Black "Vergara Anton, Diego"]
[Result "1/2-1/2"]
[ECO "C00"]
[WhiteElo "2525"]
[BlackElo "2346"]
[Annotator "TA"]
[PlyCount "93"]
[EventDate "2024.01.02"]
[EventType "swiss"]
[EventCountry "ESP"]
[SourceTitle "playchess.com"]
[Source "ChessBase"]
[SourceQuality "1"]
[TimeControl "5400+30"]

{[%evp 9,93,-23,14,-15,-21,-27,2,-52,-47,-50,-49,-81,-82,-68,-72,-118,-46,-58,-45,-45,-30,-30,-33,-31,-38,-29,-27,-35,-22,-62,-32,-120,-22,-28,-16,-13,-6,-9,-8,-6,-6,-25,-9,-9,-10,-8,0,-16,0,0,0,0,0,0,0,0,0,0,0,0,0,0,0,0,0,0,0,0,0,0,0,0,0,0,0,0,0,0,0,0,0,0,0,0,0,0]} 1. e4 {[%emt 0:23:07]} e6 {[%emt 0:00:10]} 2. g3 {[%emt 0:01:06]} d5 {[%emt 0:00:25]} 3. Bg2 {[%emt 0:00:03]} dxe4 {[%emt 0:02:06]} 4. Bxe4 {[%emt 0:00:02]} Nf6 {[%emt 0:00:07]} 5. Bg2 {[%emt 0:00:07]} Be7 {[%emt 0:01:45]} 6. d4 {[%emt 0:00:42] C00: French: Unusual White 2nd moves.} c5 {[%emt 0:01:45] [#]} 7. Nf3 $146 {[%emt 0:01:02]} ({Predecessor:} 7. c3 Nc6 8. dxc5 Qxd1+ 9. Kxd1 Bxc5 10. Be3 Bxe3 11. fxe3 e5 12. Nd2 Bf5 13. e4 {0-1 Bergmann,J (1878)-Foerster,J (2330) Berlin Lichtenberger op 16th 2017 (1)}) 7... Nc6 {[%emt 0:00:26][%cal Rc5d4]} 8. dxc5 {[%emt 0:03:20]} (8. c3 $11) 8... Qxd1+ $15 {[%emt 0:00:10]} ({Reject} 8... Bxc5 9. Qxd8+ Nxd8 10. Nc3 $11) 9. Kxd1 {[%emt 0:00:03]} Bxc5 {[%emt 0:00:07]} 10. Ke2 {[%emt 0:00:14]} e5 {[%emt 0:03:52] Hoping for ...e4.} 11. Be3 {[%emt 0:06:50]} Bxe3 {[%emt 0:00:53]} 12. Kxe3 {[%emt 0:00:58]} (12. fxe3 $142 Bf5 13. Rc1) 12... Bf5 {[%emt 0:06:14]} (12... Ng4+ $17 13. Ke2 e4) 13. Na3 {[%emt 0:00:32]} O-O-O {[%emt 0:02:32]} (13... Nd5+ {simplifies} 14. Ke2 O-O-O 15. Rhe1 f6) 14. Rhd1 {[%emt 0:01:37]} Nd5+ {[%emt 0:19:29]} 15. Rxd5 $1 {[%emt 0:01:28]} Rxd5 {[%emt 0:00:02]} 16. Nh4 {[%emt 0:00:08][%csl LRd5,LRf5] [#]} Ne7 {[%emt 0:00:26] ...Rdd8 would be deadly.} 17. Bxd5 {[%emt 0:01:06]} Nxd5+ {[%emt 0:00:12]} 18. Kd2 {[%emt 0:01:03]} Bg4 {[%emt 0:03:28]} 19. f3 {[%emt 0:06:32]} Bh3 {[%emt 0:04:38] aiming for ...g5.} 20. Nc4 {[%emt 0:06:01] [#]} ({Better is} 20. Rg1 $1 $15) 20... f6 {[%emt 0:02:35]} (20... Rd8 $1 $17 {Strongly threatening ...Nb6+.} 21. g4 (21. Nxe5 $2 {loses.} f6 $19) 21... Nb6+ {[%mdl 64] Discovered Attack} 22. Kc3 Nxc4 23. Kxc4 h5) 21. Nf5 $11 {[%emt 0:12:04][%mdl 64] Decoy} Bxf5 {[%emt 0:01:05]} 22. Nd6+ {[%emt 0:00:02]} Kc7 {[%emt 0:00:10]} 23. Nxf5 {[%emt 0:00:04][%mdl 4096] Endgame KRN-KRN} g6 {[%emt 0:00:30]} 24. Ne3 {[%emt 0:00:03]} Rd8 {[%emt 0:01:21]} 25. h4 {[%emt 0:06:22][%cal Bh2h4,Bh4h5][%mdl 32]} f5 {[%emt 0:01:28]} 26. Ke2 {[%emt 0:02:57] The position is equal.} Nxe3 {[%emt 0:00:36]} 27. Kxe3 {[%emt 0:00:03] KR-KR} Rd5 {[%emt 0:04:33]} 28. a4 {[%emt 0:05:41]} Rd4 {[%emt 0:02:09]} 29. c3 {[%emt 0:01:17]} Rd7 {[%emt 0:00:14]} 30. h5 {[%emt 0:02:19]} e4 {[%emt 0:01:13]} 31. fxe4 {[%emt 0:05:42]} Re7 {[%emt 0:00:14]} 32. hxg6 {[%emt 0:00:02]} Rxe4+ {[%emt 0:00:11]} 33. Kf3 {[%emt 0:01:24]} hxg6 {[%emt 0:00:02]} 34. a5 {[%emt 0:00:13]} g5 {[%emt 0:02:07]} 35. Rh1 {[%emt 0:00:03]} g4+ {[%emt 0:02:06]} 36. Kf2 {[%emt 0:00:01]} f4 {[%emt 0:03:18]} 37. gxf4 {[%emt 0:00:19]} Rxf4+ {[%emt 0:00:15]} 38. Kg3 {[%emt 0:00:02]} Rf5 {[%emt 0:01:28]} 39. Rh7+ {[%emt 0:00:03]} Kb8 {[%emt 0:01:01]} 40. a6 {[%emt 0:00:16]} bxa6 {[%emt 0:00:04]} 41. Kxg4 {[%emt 0:00:45]} Rf2 {[%emt 0:00:22]} 42. b3 {[%emt 0:00:22]} a5 {[%emt 0:01:51]} 43. Rh5 {[%emt 0:00:17]} Rb2 {[%emt 0:00:28]} 44. Rb5+ {[%emt 0:00:04]} Kc7 {[%emt 0:00:07]} 45. Kf4 {[%emt 0:01:03]} a6 {[%emt 0:00:09]} 46. Rxa5 {[%emt 0:00:18]} Rxb3 {[%emt 0:00:02]} 47. Rxa6 {Weighted Error Value: White=0.11 (very precise) /Black=0.09 (flawless)} 1/2-1/2

[Event "35th Roquetas Festival 2024"]
[Site "Roquetas de Mar"]
[Date "2024.01.06"]
[Round "7.6"]
[White "Korneev, Oleg"]
[Black "Macak, Stefan"]
[Result "1-0"]
[ECO "B90"]
[WhiteElo "2474"]
[BlackElo "2354"]
[Annotator "TA"]
[PlyCount "94"]
[EventDate "2024.01.02"]
[EventType "swiss"]
[EventCountry "ESP"]
[SourceTitle "playchess.com"]
[Source "ChessBase"]
[SourceQuality "1"]
[TimeControl "5400+30"]

{[%evp 15,94,11,17,8,24,-6,0,0,10,-18,0,0,0,0,0,-7,0,0,0,0,18,-17,8,0,0,16,23,17,14,0,40,32,38,27,33,26,55,51,98,98,94,40,97,68,82,83,91,50,46,47,79,81,77,83,82,73,73,74,70,70,114,111,127,74,85,74,74,74,74,68,68,63,249,-439,28,-463,0,-754,347,297,257]} 1. e4 {[%emt 0:05:59]} c5 {[%emt 0:00:59]} 2. Nf3 {[%emt 0:00:09]} d6 {[%emt 0:00:13]} 3. d4 {[%emt 0:00:05]} cxd4 {[%emt 0:00:03]} 4. Nxd4 {[%emt 0:00:05]} Nf6 {[%emt 0:00:05]} 5. Nc3 {[%emt 0:00:03]} a6 {[%emt 0:00:07]} 6. Be3 {[%emt 0:00:04]} e5 {[%emt 0:00:07]} 7. Nf3 {[%emt 0:00:02]} Be7 {[%emt 0:00:25]} 8. Bc4 {[%emt 0:00:02]} Be6 {[%emt 0:00:11]} 9. Bb3 {[%emt 0:00:03] B90: Sicilian Najdorf: Unusual White 6th moves, 6 Be3 Ng4 and 6 Be3 e5.} Nbd7 {[%emt 0:00:09]} 10. Bg5 {[%emt 0:07:42]} Rc8 {[%emt 0:06:13]} 11. O-O {[%emt 0:01:40] The position is equal.} b5 {[%emt 0:08:34]} 12. a3 {[%emt 0:04:47]} O-O {[%emt 0:08:07][%cal Oc8c3]} 13. Re1 {[%emt 0:03:45]} h6 {[%emt 0:05:37]} 14. Bxf6 {[%emt 0:00:47]} Nxf6 {[%emt 0:00:45] [#]} 15. Re2 $146 {[%emt 0:07:36]} ({Predecessor:} 15. Nd2 Bg4 16. f3 Qb6+ 17. Kh1 Be6 18. Nf1 Rc5 19. Ne3 Rfc8 20. Re2 Rxc3 21. bxc3 Rxc3 {0-1 Carlsen,M (2861)-Vachier Lagrave,M (2780) Abidjan GCT blitz 2019 (2)}) 15... Qb6 {[%emt 0:14:30]} 16. Nd5 {[%emt 0:01:22]} Nxd5 {[%emt 0:03:23]} 17. Bxd5 {[%emt 0:00:05]} Rc5 {[%emt 0:01:54]} 18. Bb3 {[%emt 0:20:28]} Bg4 {[%emt 0:05:28]} 19. Qd3 {[%emt 0:02:19]} Kh8 {[%emt 0:07:35]} 20. h3 {[%emt 0:00:19]} Bh5 {[%emt 0:01:50]} 21. Rd1 {[%emt 0:03:02]} a5 {[%emt 0:02:11]} 22. c3 {[%emt 0:02:49]} b4 {[%emt 0:02:38]} 23. cxb4 {Black is weak on the light squares} axb4 {[%emt 0:00:19]} 24. a4 {[%emt 0:00:13]} Rfc8 {[%emt 0:01:09][%cal Bf8c8,Bc8c6,Bc6a6,Ba6a7][%mdl 32]} 25. Ree1 {[%emt 0:06:59]} R8c6 {[%emt 0:11:39]} 26. Ra1 {[%emt 0:00:29]} Qa6 {[%emt 0:06:30]} (26... Kg8 $14) 27. Qxa6 $16 {[%emt 0:04:03]} Rxa6 {[%emt 0:00:00]} 28. Nd2 {[%emt 0:01:30]} (28. Rec1 $1 $16) 28... f6 {[%emt 0:01:13]} ({Black should play} 28... Bg5 $14 29. Nf1 Bg6) 29. Bc4 {[%emt 0:02:22]} Ra7 {[%emt 0:01:01]} 30. b3 {[%emt 0:00:09]} Bd8 {[%emt 0:02:00]} 31. Nf1 {[%emt 0:01:25][%cal Bd2f1,Bf1e3,Be3f5][%mdl 32]} Bb6 {[%emt 0:01:03]} 32. Ne3 {[%emt 0:01:26]} Rca5 {[%emt 0:00:57]} 33. Nf5 {[%emt 0:10:42]} Bc5 {[%emt 0:01:16]} 34. g4 {[%emt 0:00:05] White is more active.} Bg6 {[%emt 0:00:43]} 35. Rad1 {[%emt 0:00:25]} Bxf5 {[%emt 0:01:00]} 36. exf5 {[%emt 0:00:55]} Ra8 {[%emt 0:03:26]} 37. Rd5 {[%emt 0:00:33]} Rc8 {[%emt 0:02:09]} 38. Kg2 {[%emt 0:01:10]} Kh7 {[%emt 0:00:08]} 39. Kf3 {[%emt 0:04:40]} (39. f4 $142) 39... Raa8 {[%emt 0:00:15]} 40. Re2 {[%emt 0:01:43]} g5 {[%emt 0:02:51]} 41. Ra2 {[%emt 0:05:57]} Ra5 {[%emt 0:00:30]} 42. Bb5 {[%emt 0:00:30]} Kg7 {[%emt 0:00:03]} 43. Rc2 {[%emt 0:00:15] Black must now prevent Rxd6.} Ra7 $2 {[%emt 0:01:41] [#]} (43... Raa8 $14) 44. Bc6 $4 {[%emt 0:00:00][%mdl 8192]} Rb8 $2 {[%emt 0:00:49] [#]} (44... Rxc6 $19 45. Rc4 Ra8) 45. Bb7 $2 {[%emt 0:00:25][%mdl 8192]} Kf7 $2 {[%emt 0:00:41]} (45... Rbxb7 $2 {is the wrong capture.} 46. Ke4 $19) ({Better is} 45... Raxb7 $19 46. Ke4 Ra7) 46. a5 $2 {[%emt 0:00:35][%mdl 8192]} Bb6 $4 {[%emt 0:00:28][%mdl 8192]} (46... Rbxb7 $19 {and all is fine.} 47. Ra2 Rb5) 47. a6 {[%emt 0:01:11]} Bc5 {[%emt 0:00:23] Weighted Error Value: White=0.50/Black=0.59} 1-0